[Event "Amsterdam Chess Open 2024"]
[Site "Amsterdam"]
[Date "2024.11.02"]
[Round "3.7"]
[White "Elgersma, Onno"]
[Black "Bruns, Kai-Christian"]
[Result "0-1"]
[ECO "B45"]
[WhiteElo "2311"]
[BlackElo "2067"]
[Annotator "RC"]
[PlyCount "90"]
[EventDate "2024.10.31"]
[EventType "swiss"]
[EventCountry "NED"]
[SourceTitle "playchess.com"]
[Source "ChessBase"]
[SourceQuality "1"]
[TimeControl "5400+30"]

1. e4 {[%emt 0:00:03]} c5 {[%emt 0:00:03]} 2. Nf3 {[%emt 0:00:12]} e6 {[%emt 0:00:03]} 3. d4 {[%emt 0:02:14]} cxd4 {[%emt 0:00:06]} 4. Nxd4 {[%emt 0:00:03]} Nf6 {[%emt 0:00:06]} 5. Nc3 {[%emt 0:00:05]} Nc6 {[%emt 0:00:04]} 6. Be2 {[%emt 0:01:01]} Bb4 {[%emt 0:00:06]} 7. O-O {[%emt 0:00:37]} Bxc3 {[%emt 0:00:05]} 8. bxc3 {[%emt 0:00:04]} Nxe4 {[%emt 0:00:06]} 9. Nxc6 {[%emt 0:00:08]} dxc6 {[%emt 0:00:06]} 10. Bd3 {[%emt 0:00:38]} Nc5 {[%emt 0:00:07]} 11. Qg4 {[%emt 0:05:57]} Qf6 {[%emt 0:00:08]} 12. Bg5 {[%emt 0:01:27]} Qxc3 {[%emt 0:00:08]} 13. Qg3 {[%emt 0:00:14]} h6 {[%emt 0:03:47]} 14. Bf4 {[%emt 0:14:36]} Nxd3 {[%emt 0:01:53]} 15. cxd3 {[%emt 0:00:31]} Qf6 {[%emt 0:01:01]} 16. Be5 {[%emt 0:01:33]} Qg5 {[%emt 0:00:15]} 17. Bxg7 {[%emt 0:00:07]} Rg8 {[%emt 0:00:06]} 18. Bxh6 {[%emt 0:00:14]} Qxg3 {[%emt 0:00:07]} 19. fxg3 {[%emt 0:00:51]} c5 {[%emt 0:00:26]} 20. Rf6 {[%emt 0:12:10]} e5 {[%emt 0:19:45]} 21. Re1 {[%emt 0:07:53]} Ke7 {[%emt 0:02:23]} 22. Rf2 {[%emt 0:00:18]} f6 {[%emt 0:13:15]} 23. Ref1 {[%emt 0:00:21]} Be6 {[%emt 0:05:53]} 24. Rxf6 {[%emt 0:01:48]} Bxa2 {[%emt 0:00:53]} 25. Be3 {[%emt 0:02:09]} b6 {[%emt 0:02:15]} 26. Rh6 {[%emt 0:00:16]} Kd7 {[%emt 0:05:54]} 27. Rh7+ {[%emt 0:11:14]} Kc6 {[%emt 0:02:38]} 28. Ra1 {[%emt 0:00:41]} Be6 {[%emt 0:01:48]} 29. Raxa7 {[%emt 0:00:29]} Rxa7 {[%emt 0:00:17]} 30. Rxa7 {[%emt 0:00:02]} Bf5 {[%emt 0:01:32]} 31. Kf2 {[%emt 0:01:18]} Bxd3 {[%emt 0:00:36]} 32. h4 {[%emt 0:00:47]} b5 {[%emt 0:06:24]} 33. h5 {[%emt 0:05:09]} b4 {[%emt 0:02:57]} 34. Bd2 {[%emt 0:00:33]} Rb8 {[%emt 0:01:58]} 35. Ke3 {[%emt 0:02:18]} c4 {[%emt 0:03:44]} 36. Bc1 {[%emt 0:03:37]} Rg8 {[%emt 0:03:32]} 37. h6 {[%emt 0:02:37]} Rxg3+ {[%emt 0:00:36]} 38. Kf2 {[%emt 0:00:02]} Rg8 {[%emt 0:00:31]} 39. Ra6+ {[%emt 0:02:20]} Kc5 {[%emt 0:03:53]} 40. Ra5+ {[%emt 0:01:17]} Kd4 {[%emt 0:00:24]} 41. Rb5 {[%emt 0:09:16]} Kc3 {[%emt 0:00:37]} 42. Rxe5 {[%emt 0:06:09]} Kc2 {[%emt 0:00:43]} 43. Be3 {[%emt 0:00:24]} b3 {[%emt 0:02:21]} 44. Bd4 {[%emt 0:00:21]} b2 {[%emt 0:01:45]} 45. h7 {[%emt 0:02:24]} Rf8+ {[%emt 0:00:37]} 0-1

[Event "Amsterdam Chess Open 2024"]
[Site "Amsterdam"]
[Date "2024.11.02"]
[Round "3.7"]
[White "Elgersma, Onno"]
[Black "Bruns, Kai-Christian"]
[Result "*"]
[ECO "B45"]
[WhiteElo "2311"]
[BlackElo "2067"]
[Annotator "RC"]
[PlyCount "62"]
[EventDate "2024.10.31"]
[EventType "swiss"]
[EventCountry "NED"]
[SourceTitle "playchess.com"]
[Source "ChessBase"]
[SourceQuality "1"]
[TimeControl "5400+30"]

1. e4 {[%emt 0:00:03]} c5 {[%emt 0:00:03]} 2. Nf3 {[%emt 0:00:12]} e6 {[%emt 0:00:03]} 3. d4 {[%emt 0:02:14]} cxd4 {[%emt 0:00:06]} 4. Nxd4 {[%emt 0:00:03]} Nf6 {[%emt 0:00:06]} 5. Nc3 {[%emt 0:00:05]} Nc6 {[%emt 0:00:04]} 6. Be2 {[%emt 0:01:01]} Bb4 {[%emt 0:00:06]} 7. O-O {[%emt 0:00:37]} Bxc3 {[%emt 0:00:05]} 8. bxc3 {[%emt 0:00:04]} Nxe4 {[%emt 0:00:06]} 9. Nxc6 {[%emt 0:00:08]} dxc6 {[%emt 0:00:06]} 10. Bd3 {[%emt 0:00:38]} Nc5 {[%emt 0:00:07]} 11. Qg4 {[%emt 0:05:57]} Qf6 {[%emt 0:00:08]} 12. Bg5 {[%emt 0:01:27]} Qxc3 {[%emt 0:00:08]} 13. Qg3 {[%emt 0:00:14]} h6 {[%emt 0:03:47]} 14. Bf4 {[%emt 0:14:36]} Nxd3 {[%emt 0:01:53]} 15. cxd3 {[%emt 0:00:31]} Qf6 {[%emt 0:01:01]} 16. Be5 {[%emt 0:01:33]} Qg5 {[%emt 0:00:15]} 17. Bxg7 {[%emt 0:00:07]} Rg8 {[%emt 0:00:06]} 18. Bxh6 {[%emt 0:00:14]} Qxg3 {[%emt 0:00:07]} 19. fxg3 {[%emt 0:00:51]} c5 {[%emt 0:00:26]} 20. Rf6 {[%emt 0:12:10]} e5 {[%emt 0:19:45]} 21. Re1 {[%emt 0:07:53]} Ke7 {[%emt 0:02:23]} 22. Rf2 {[%emt 0:00:18]} f6 {[%emt 0:13:15]} 23. Ref1 {[%emt 0:00:21]} Be6 {[%emt 0:05:53]} 24. Rxf6 {[%emt 0:01:48]} Bxa2 {[%emt 0:00:53]} 25. Be3 {[%emt 0:02:09]} b6 {[%emt 0:02:15]} 26. Rh6 {[%emt 0:00:15]} Kd7 {[%emt 0:05:54]} 27. Rh7+ {[%emt 0:11:13]} Kc6 {[%emt 0:02:38]} 28. Ra1 {[%emt 0:00:41]} Be6 {[%emt 0:01:48]} 29. Ra4 {[%emt 0:00:29]} a6 30. Rxa6 {[%emt 0:00:30]} Ra7 {[%emt 0:00:47]} 31. Raxa7 {[%emt 0:00:02]} Bf5 {[%emt 0:01:32]} *

[Event "Amsterdam Chess Open 2024"]
[Site "Amsterdam"]
[Date "2024.11.02"]
[Round "3.8"]
[White "Moss, Guy"]
[Black "Pham, Khoi"]
[Result "0-1"]
[ECO "B32"]
[WhiteElo "2175"]
[BlackElo "2264"]
[Annotator "RC"]
[PlyCount "94"]
[EventDate "2024.10.31"]
[EventType "swiss"]
[EventCountry "NED"]
[SourceTitle "playchess.com"]
[Source "ChessBase"]
[SourceQuality "1"]
[TimeControl "5400+30"]

1. e4 {[%emt 0:00:03]} c5 {[%emt 0:01:20]} 2. Nf3 {[%emt 0:00:07]} Nc6 {[%emt 0:00:11]} 3. d4 {[%emt 0:00:06]} cxd4 {[%emt 0:00:03]} 4. Nxd4 {[%emt 0:00:04]} e5 {[%emt 0:00:05]} 5. Nb5 {[%emt 0:00:14]} d6 {[%emt 0:00:06]} 6. N1c3 {[%emt 0:00:07]} a6 {[%emt 0:00:38]} 7. Na3 {[%emt 0:00:05]} Be6 {[%emt 0:00:43]} 8. Nd5 {[%emt 0:08:24]} Nf6 {[%emt 0:01:57]} 9. Nxf6+ {[%emt 0:00:55]} Qxf6 {[%emt 0:02:31]} 10. c4 {[%emt 0:02:46]} Qg6 {[%emt 0:03:43]} 11. f3 {[%emt 0:13:41]} Be7 {[%emt 0:01:31]} 12. Be3 {[%emt 0:07:45]} O-O {[%emt 0:01:29]} 13. g4 {[%emt 0:10:41]} Bh4+ {[%emt 0:07:06]} 14. Bf2 {[%emt 0:01:07]} Qf6 {[%emt 0:02:10]} 15. Rg1 {[%emt 0:12:52]} Nd4 {[%emt 0:04:02]} 16. Be2 {[%emt 0:00:10]} Rac8 {[%emt 0:08:31]} 17. Rc1 {[%emt 0:10:40]} h5 {[%emt 0:05:11]} 18. h3 {[%emt 0:04:32]} Bxf2+ {[%emt 0:02:33]} 19. Kxf2 {[%emt 0:00:08]} Qf4 {[%emt 0:00:15]} 20. Rc3 {[%emt 0:12:16]} Qh2+ {[%emt 0:16:33]} 21. Rg2 {[%emt 0:00:06]} Qxh3 {[%emt 0:00:03]} 22. Nc2 {[%emt 0:00:51]} Nxc2 {[%emt 0:05:34]} 23. Rxc2 {[%emt 0:01:02]} hxg4 {[%emt 0:01:34]} 24. fxg4 {[%emt 0:00:07]} Qh6 {[%emt 0:01:48]} 25. Qd3 {[%emt 0:02:25]} b5 {[%emt 0:02:28]} 26. b3 {[%emt 0:03:24]} bxc4 {[%emt 0:00:55]} 27. bxc4 {[%emt 0:00:07]} Qf4+ {[%emt 0:00:56]} 28. Qf3 {[%emt 0:00:34]} Qxf3+ {[%emt 0:03:07]} 29. Kxf3 {[%emt 0:00:01]} Rc5 {[%emt 0:01:54]} 30. Rg1 {[%emt 0:00:20]} Rfc8 {[%emt 0:02:43]} 31. Rgc1 {[%emt 0:00:05]} Kf8 {[%emt 0:00:20]} 32. Rc3 {[%emt 0:03:25]} Ke7 {[%emt 0:00:35]} 33. g5 {[%emt 0:00:22]} d5 {[%emt 0:06:14]} 34. exd5 {[%emt 0:00:36]} Bxd5+ {[%emt 0:00:04]} 35. Ke3 {[%emt 0:00:37]} f5 {[%emt 0:01:04]} 36. gxf6+ {[%emt 0:00:05]} gxf6 {[%emt 0:00:04]} 37. Bd3 {[%emt 0:01:16]} Be6 {[%emt 0:00:46]} 38. Rf1 {[%emt 0:02:38]} Rh8 {[%emt 0:01:10]} 39. Rb3 {[%emt 0:00:42]} Rh3+ {[%emt 0:00:49]} 40. Kf2 {[%emt 0:00:49]} f5 {[%emt 0:02:17]} 41. Bb1 {[%emt 0:01:06]} Rh4 {[%emt 0:01:09]} 42. Ke3 {[%emt 0:00:26]} f4+ {[%emt 0:02:54]} 43. Kd2 {[%emt 0:00:21]} Rh2+ {[%emt 0:00:42]} 44. Ke1 {[%emt 0:00:24]} Rxc4 {[%emt 0:00:30]} 45. Rb7+ {[%emt 0:00:10]} Kf6 {[%emt 0:00:13]} 46. Rf2 {[%emt 0:00:48]} Rc1+ {[%emt 0:02:51]} 47. Kd2 {[%emt 0:00:04]} Rxb1 {[%emt 0:00:14]} 0-1

[Event "Amsterdam Chess Open 2024"]
[Site "Amsterdam"]
[Date "2024.11.02"]
[Round "3.9"]
[White "Kazarian, Anna-Maja"]
[Black "Grutter, Tim"]
[Result "0-1"]
[ECO "C77"]
[WhiteElo "2178"]
[BlackElo "2350"]
[Annotator "RC"]
[PlyCount "96"]
[EventDate "2024.10.31"]
[EventType "swiss"]
[EventCountry "NED"]
[SourceTitle "playchess.com"]
[Source "ChessBase"]
[SourceQuality "1"]
[TimeControl "5400+30"]

1. e4 {[%emt 0:00:02]} e5 {[%emt 0:00:11]} 2. Nf3 {[%emt 0:00:04]} Nc6 {[%emt 0:00:04]} 3. Bb5 {[%emt 0:00:04]} a6 {[%emt 0:00:05]} 4. Ba4 {[%emt 0:00:03]} Nf6 {[%emt 0:00:06]} 5. d3 {[%emt 0:00:03]} d6 {[%emt 0:00:37]} 6. c3 {[%emt 0:00:13]} g6 {[%emt 0:00:06]} 7. O-O {[%emt 0:00:09]} Bg7 {[%emt 0:00:04]} 8. Nbd2 {[%emt 0:00:24]} O-O {[%emt 0:00:36]} 9. Re1 {[%emt 0:00:30]} h6 {[%emt 0:01:08]} 10. Nf1 {[%emt 0:00:26]} b5 {[%emt 0:03:03]} 11. Bc2 {[%emt 0:03:13]} a5 {[%emt 0:01:39]} 12. a4 {[%emt 0:03:22]} b4 {[%emt 0:01:30]} 13. Ne3 {[%emt 0:08:00]} Bb7 {[%emt 0:07:13]} 14. h3 {[%emt 0:17:44]} d5 {[%emt 0:05:09]} 15. exd5 {[%emt 0:14:33]} Nxd5 {[%emt 0:00:34]} 16. Ng4 {[%emt 0:00:42]} h5 {[%emt 0:15:56]} 17. Ngxe5 {[%emt 0:05:55]} Nxe5 {[%emt 0:01:08]} 18. Nxe5 {[%emt 0:00:06]} bxc3 {[%emt 0:00:21]} 19. d4 {[%emt 0:09:04]} cxb2 {[%emt 0:07:36]} 20. Bxb2 {[%emt 0:00:05]} Nb4 {[%emt 0:05:50]} 21. Be4 {[%emt 0:04:18]} Bxe4 {[%emt 0:01:52]} 22. Rxe4 {[%emt 0:00:03]} Qd5 {[%emt 0:00:28]} 23. Qf3 {[%emt 0:04:45]} Rfe8 {[%emt 0:01:22]} 24. Rf4 {[%emt 0:06:30]} Qxf3 {[%emt 0:01:23]} 25. Rxf3 {[%emt 0:00:24]} c5 {[%emt 0:01:13]} 26. Nxf7 {[%emt 0:07:25]} Re2 {[%emt 0:02:42]} 27. Rb1 {[%emt 0:06:39]} cxd4 {[%emt 0:05:44]} 28. Kf1 {[%emt 0:03:09]} Rc2 {[%emt 0:01:47]} 29. Ng5 {[%emt 0:04:42]} Re8 {[%emt 0:02:13]} 30. Rf7 {[%emt 0:00:34]} Bh6 {[%emt 0:11:09]} 31. Rf6 {[%emt 0:00:16]} Rc6 {[%emt 0:06:02]} 32. Rxc6 {[%emt 0:01:31]} Nxc6 {[%emt 0:00:01]} 33. Bc1 {[%emt 0:01:16]} Ne5 {[%emt 0:10:06]} 34. Rb6 {[%emt 0:00:35]} Rc8 {[%emt 0:01:58]} 35. Bf4 {[%emt 0:00:14]} Bxg5 {[%emt 0:00:38]} 36. Bxe5 {[%emt 0:00:50]} d3 {[%emt 0:00:23]} 37. Rb8 {[%emt 0:00:03]} Rxb8 {[%emt 0:00:34]} 38. Bxb8 {[%emt 0:00:01]} Bd2 {[%emt 0:01:07]} 39. f4 {[%emt 0:01:22]} Kf7 {[%emt 0:00:16]} 40. Kf2 {[%emt 0:00:34]} Ke6 {[%emt 0:00:06]} 41. Kf3 {[%emt 0:00:31]} Kd5 {[%emt 0:00:14]} 42. g4 {[%emt 0:00:17]} hxg4+ {[%emt 0:00:25]} 43. hxg4 {[%emt 0:00:06]} Kc4 {[%emt 0:02:34]} 44. f5 {[%emt 0:01:07]} gxf5 {[%emt 0:00:52]} 45. gxf5 {[%emt 0:00:01]} Kb3 {[%emt 0:00:38]} 46. f6 {[%emt 0:00:56]} Bb4 {[%emt 0:00:57]} 47. Bf4 {[%emt 0:00:37]} d2 {[%emt 0:00:27]} 48. Ke2 {[%emt 0:00:19]} Kc2 {[%emt 0:00:04]} 0-1

[Event "Amsterdam Chess Open 2024"]
[Site "Amsterdam"]
[Date "2024.11.02"]
[Round "3.10"]
[White "Saine, Zachary"]
[Black "Martyr, Reginald"]
[Result "1-0"]
[ECO "C18"]
[WhiteElo "2038"]
[BlackElo "2171"]
[Annotator "RC"]
[PlyCount "113"]
[EventDate "2024.10.31"]
[EventType "swiss"]
[EventCountry "NED"]
[SourceTitle "playchess.com"]
[Source "ChessBase"]
[SourceQuality "1"]
[TimeControl "5400+30"]

1. e4 {[%emt 0:00:03]} e6 {[%emt 0:02:32]} 2. d4 {[%emt 0:00:06]} d5 {[%emt 0:00:04]} 3. Nc3 {[%emt 0:00:05]} Bb4 {[%emt 0:00:06]} 4. e5 {[%emt 0:00:13]} c5 {[%emt 0:00:04]} 5. a3 {[%emt 0:00:04]} Bxc3+ {[%emt 0:00:11]} 6. bxc3 {[%emt 0:00:06]} Ne7 {[%emt 0:00:29]} 7. Qg4 {[%emt 0:00:21]} Qc7 {[%emt 0:00:31]} 8. Qxg7 {[%emt 0:00:53]} Rg8 {[%emt 0:00:09]} 9. Qxh7 {[%emt 0:00:07]} cxd4 {[%emt 0:00:11]} 10. Ne2 {[%emt 0:00:13]} Nbc6 {[%emt 0:00:18]} 11. f4 {[%emt 0:00:13]} dxc3 {[%emt 0:00:12]} 12. Qd3 {[%emt 0:00:11]} Bd7 {[%emt 0:01:17]} 13. Qxc3 {[%emt 0:00:15]} Nf5 {[%emt 0:02:04]} 14. h3 {[%emt 0:07:21]} d4 {[%emt 0:09:17]} 15. Qd3 {[%emt 0:02:53]} Na5 {[%emt 0:23:09]} 16. Rg1 {[%emt 0:30:35]} Bc6 {[%emt 0:20:47]} 17. g4 {[%emt 0:31:38]} Nh4 {[%emt 0:00:33]} 18. Rg3 {[%emt 0:00:17]} O-O-O {[%emt 0:02:19]} 19. Bb2 {[%emt 0:05:30]} f6 {[%emt 0:13:36]} 20. exf6 {[%emt 0:05:52]} e5 {[%emt 0:00:22]} 21. fxe5 {[%emt 0:02:06]} Qxe5 {[%emt 0:00:23]} 22. Bxd4 {[%emt 0:02:06]} Rxd4 {[%emt 0:02:42]} 23. Qxd4 {[%emt 0:00:06]} Qxg3+ {[%emt 0:00:23]} 24. Nxg3 {[%emt 0:00:05]} Nf3+ {[%emt 0:00:10]} 25. Kf2 {[%emt 0:00:11]} Nxd4 {[%emt 0:00:07]} 26. Bd3 {[%emt 0:09:27]} Rf8 {[%emt 0:07:24]} 27. g5 {[%emt 0:00:54]} Nf3 {[%emt 0:00:24]} 28. h4 {[%emt 0:00:23]} Nxh4 {[%emt 0:00:19]} 29. Nh5 {[%emt 0:00:35]} Be8 {[%emt 0:11:07]} 30. Rh1 {[%emt 0:01:45]} Bxh5 {[%emt 0:01:07]} 31. Rxh4 {[%emt 0:00:04]} Be8 {[%emt 0:00:15]} 32. Rf4 {[%emt 0:00:34]} Rg8 {[%emt 0:01:26]} 33. g6 {[%emt 0:00:21]} Rxg6 {[%emt 0:00:47]} 34. Bxg6 {[%emt 0:00:14]} Bxg6 {[%emt 0:00:01]} 35. f7 {[%emt 0:00:45]} Bxf7 {[%emt 0:00:02]} 36. Rxf7 {[%emt 0:00:36]} Nc4 {[%emt 0:00:32]} 37. a4 {[%emt 0:00:38]} a5 {[%emt 0:00:34]} 38. Ke2 {[%emt 0:00:10]} Kb8 {[%emt 0:00:35]} 39. Rf4 {[%emt 0:00:24]} Nb6 {[%emt 0:00:11]} 40. Kd3 {[%emt 0:00:11]} Ka7 {[%emt 0:00:14]} 41. Rf5 {[%emt 0:01:06]} Ka6 {[%emt 0:00:17]} 42. Rf6 {[%emt 0:00:30]} Ka7 {[%emt 0:00:12]} 43. Rf4 {[%emt 0:00:17]} Ka6 {[%emt 0:00:07]} 44. Rh4 {[%emt 0:00:09]} Ka7 {[%emt 0:00:11]} 45. Kc3 {[%emt 0:00:09]} Ka6 {[%emt 0:00:24]} 46. Kb3 {[%emt 0:00:11]} Nd7 {[%emt 0:00:16]} 47. Kc4 {[%emt 0:01:09]} b6 {[%emt 0:00:12]} 48. Kd5 {[%emt 0:00:31]} Nc5 {[%emt 0:00:03]} 49. Kc6 {[%emt 0:00:18]} Ne6 {[%emt 0:00:34]} 50. Rh8 {[%emt 0:01:39]} Nd4+ {[%emt 0:01:33]} 51. Kc7 {[%emt 0:00:04]} Ne6+ {[%emt 0:01:02]} 52. Kd6 {[%emt 0:00:07]} Nc5 {[%emt 0:00:08]} 53. Kc6 {[%emt 0:00:04]} Ka7 {[%emt 0:00:20]} 54. Rh7+ {[%emt 0:00:05]} Ka6 {[%emt 0:00:07]} 55. c4 {[%emt 0:00:38]} Nd3 {[%emt 0:01:25]} 56. Rh8 {[%emt 0:01:07]} Ka7 57. Kb5 {[%emt 0:00:30]} 1-0

[Event "Amsterdam Chess Open 2024"]
[Site "Amsterdam"]
[Date "2024.11.02"]
[Round "3.11"]
[White "Baarslag, Ed"]
[Black "De Witte, Stein"]
[Result "1/2-1/2"]
[ECO "E04"]
[WhiteElo "1993"]
[BlackElo "1921"]
[Annotator "RC"]
[PlyCount "90"]
[EventDate "2024.10.31"]
[EventType "swiss"]
[EventCountry "NED"]
[SourceTitle "playchess.com"]
[Source "ChessBase"]
[SourceQuality "1"]
[TimeControl "5400+30"]

1. Nf3 {[%emt 0:00:30]} d5 {[%emt 0:00:10]} 2. g3 {[%emt 0:00:00]} Nf6 {[%emt 0:00:48]} 3. Bg2 {[%emt 0:00:00]} c5 {[%emt 0:02:01]} 4. O-O {[%emt 0:00:35]} Nc6 {[%emt 0:01:26]} 5. d4 {[%emt 0:00:32]} e6 {[%emt 0:02:16]} 6. c4 {[%emt 0:01:30]} dxc4 {[%emt 0:00:40]} 7. Ne5 {[%emt 0:03:09]} Bd7 {[%emt 0:02:07]} 8. Nxc4 {[%emt 0:01:15]} cxd4 {[%emt 0:02:51]} 9. Bf4 {[%emt 0:01:06]} Nd5 {[%emt 0:14:26]} 10. Bxd5 {[%emt 0:04:54]} exd5 {[%emt 0:00:46]} 11. Nd6+ {[%emt 0:00:24]} Bxd6 {[%emt 0:00:49]} 12. Bxd6 {[%emt 0:00:02]} Bh3 {[%emt 0:01:38]} 13. Ba3 {[%emt 0:00:24]} Bxf1 {[%emt 0:01:47]} 14. Kxf1 {[%emt 0:00:05]} Qd7 {[%emt 0:14:07]} 15. Nd2 {[%emt 0:01:20]} Ne7 {[%emt 0:18:56]} 16. Nb3 {[%emt 0:01:50]} O-O {[%emt 0:01:09]} 17. Qxd4 {[%emt 0:00:58]} Nc6 {[%emt 0:01:56]} 18. Qf4 {[%emt 0:01:38]} Rfe8 {[%emt 0:01:50]} 19. e3 {[%emt 0:00:36]} Qh3+ {[%emt 0:02:56]} 20. Kg1 {[%emt 0:02:35]} Re6 {[%emt 0:06:48]} 21. Qf3 {[%emt 0:01:13]} Rh6 {[%emt 0:04:18]} 22. Qg2 {[%emt 0:00:19]} Qxg2+ {[%emt 0:00:30]} 23. Kxg2 {[%emt 0:00:07]} Ne5 {[%emt 0:03:05]} 24. Bc5 {[%emt 0:02:09]} b6 {[%emt 0:00:26]} 25. Bd4 {[%emt 0:00:17]} Nc4 {[%emt 0:01:34]} 26. Bc3 {[%emt 0:02:20]} Rd6 {[%emt 0:04:23]} 27. Nd4 {[%emt 0:00:48]} g6 {[%emt 0:01:17]} 28. g4 {[%emt 0:01:47]} Rd7 {[%emt 0:02:32]} 29. h4 {[%emt 0:00:28]} Nd6 {[%emt 0:00:41]} 30. Rh1 {[%emt 0:01:26]} Ne4 {[%emt 0:01:31]} 31. Be1 {[%emt 0:00:14]} Rc8 {[%emt 0:01:48]} 32. f3 {[%emt 0:00:14]} Nc5 {[%emt 0:01:19]} 33. Bg3 {[%emt 0:00:22]} Ne6 {[%emt 0:00:22]} 34. Nxe6 {[%emt 0:01:36]} fxe6 {[%emt 0:00:01]} 35. Be5 {[%emt 0:00:12]} Rc2+ {[%emt 0:01:20]} 36. Kg3 {[%emt 0:00:09]} Re2 {[%emt 0:01:20]} 37. Rc1 {[%emt 0:02:07]} Rxe3 {[%emt 0:00:44]} 38. Rc8+ {[%emt 0:00:07]} Kf7 {[%emt 0:00:16]} 39. Kf4 {[%emt 0:00:09]} Rxe5 {[%emt 0:01:35]} 40. Kxe5 {[%emt 0:00:06]} d4 {[%emt 0:00:29]} 41. Rc2 {[%emt 0:00:41]} Rd5+ {[%emt 0:00:56]} 42. Ke4 {[%emt 0:00:14]} d3 {[%emt 0:00:55]} 43. Rd2 {[%emt 0:00:20]} Ra5 {[%emt 0:00:26]} 44. a3 {[%emt 0:00:44]} Rb5 {[%emt 0:00:18]} 45. Rxd3 {[%emt 0:02:44]} Ke7 {[%emt 0:00:28]} 1/2-1/2

[Event "Amsterdam Chess Open 2024"]
[Site "Amsterdam"]
[Date "2024.11.02"]
[Round "3.12"]
[White "Schoonackers, Jeroen"]
[Black "Fritschy, Pieter"]
[Result "1/2-1/2"]
[ECO "D41"]
[WhiteElo "1983"]
[BlackElo "1930"]
[Annotator "RC"]
[PlyCount "75"]
[EventDate "2024.10.31"]
[EventType "swiss"]
[EventCountry "NED"]
[SourceTitle "playchess.com"]
[Source "ChessBase"]
[SourceQuality "1"]
[TimeControl "5400+30"]

1. d4 {[%emt 0:00:12]} Nf6 {[%emt 0:00:05]} 2. c4 {[%emt 0:00:10]} e6 {[%emt 0:00:05]} 3. Nc3 {[%emt 0:00:24]} d5 {[%emt 0:00:08]} 4. cxd5 {[%emt 0:00:07]} Nxd5 {[%emt 0:00:11]} 5. e4 {[%emt 0:00:29]} Nxc3 {[%emt 0:00:04]} 6. bxc3 {[%emt 0:00:06]} c5 {[%emt 0:00:07]} 7. Rb1 {[%emt 0:03:57]} cxd4 {[%emt 0:02:27]} 8. cxd4 {[%emt 0:00:19]} Be7 {[%emt 0:00:15]} 9. Nf3 {[%emt 0:01:20]} O-O {[%emt 0:01:20]} 10. Bc4 {[%emt 0:02:16]} Nd7 {[%emt 0:01:33]} 11. O-O {[%emt 0:00:24]} Nf6 {[%emt 0:02:27]} 12. Qe2 {[%emt 0:01:55]} b6 {[%emt 0:01:42]} 13. d5 {[%emt 0:10:33]} exd5 {[%emt 0:02:12]} 14. exd5 {[%emt 0:00:09]} Bb7 {[%emt 0:06:34]} 15. Rd1 {[%emt 0:00:51]} Bd6 {[%emt 0:09:14]} 16. Bg5 {[%emt 0:02:59]} h6 {[%emt 0:01:13]} 17. Bh4 {[%emt 0:01:45]} Re8 {[%emt 0:01:34]} 18. Qd3 {[%emt 0:01:59]} g5 {[%emt 0:09:30]} 19. Bg3 {[%emt 0:02:35]} Bxg3 {[%emt 0:11:43]} 20. hxg3 {[%emt 0:00:23]} Qd6 {[%emt 0:02:13]} 21. Nd4 {[%emt 0:06:27]} Rac8 {[%emt 0:03:54]} 22. Nf5 {[%emt 0:06:12]} Qc5 {[%emt 0:05:07]} 23. Nxh6+ {[%emt 0:07:59]} Kf8 {[%emt 0:00:48]} 24. Qf5 {[%emt 0:13:53]} Qd6 {[%emt 0:00:36]} 25. Bb3 {[%emt 0:13:34]} Re5 {[%emt 0:00:31]} 26. Qd3 {[%emt 0:00:33]} Bxd5 {[%emt 0:03:32]} 27. Nf5 {[%emt 0:01:16]} Qe6 {[%emt 0:00:22]} 28. Nd4 {[%emt 0:00:19]} Qe7 {[%emt 0:01:55]} 29. Nf3 {[%emt 0:03:22]} Bxb3 {[%emt 0:10:22]} 30. Qxb3 {[%emt 0:00:50]} Rec5 {[%emt 0:00:40]} 31. Re1 {[%emt 0:00:25]} Qc7 {[%emt 0:08:25]} 32. Qb2 {[%emt 0:00:38]} Qc6 {[%emt 0:00:52]} 33. Ne5 {[%emt 0:01:20]} Qd6 {[%emt 0:04:24]} 34. Nd7+ {[%emt 0:03:27]} Qxd7 {[%emt 0:00:29]} 35. Qxf6 {[%emt 0:00:09]} Kg8 {[%emt 0:00:30]} 36. Rbd1 {[%emt 0:02:37]} Qf5 {[%emt 0:00:31]} 37. Rd8+ {[%emt 0:02:52]} Rxd8 {[%emt 0:00:07]} 38. Qxd8+ {[%emt 0:00:06]} 1/2-1/2

[Event "Amsterdam Chess Open 2024"]
[Site "Amsterdam"]
[Date "2024.11.02"]
[Round "3.13"]
[White "Maes, Djad"]
[Black "Heij, Jacco"]
[Result "0-1"]
[ECO "C54"]
[WhiteElo "1916"]
[BlackElo "1979"]
[Annotator "RC"]
[PlyCount "56"]
[EventDate "2024.10.31"]
[EventType "swiss"]
[EventCountry "NED"]
[SourceTitle "playchess.com"]
[Source "ChessBase"]
[SourceQuality "1"]
[TimeControl "5400+30"]

1. e4 {[%emt 0:00:03]} e5 {[%emt 0:00:05]} 2. Nf3 {[%emt 0:00:06]} Nc6 {[%emt 0:00:11]} 3. Bc4 {[%emt 0:00:10]} Bc5 {[%emt 0:00:46]} 4. c3 {[%emt 0:00:07]} Nf6 {[%emt 0:00:14]} 5. d3 {[%emt 0:00:11]} d6 {[%emt 0:00:24]} 6. O-O {[%emt 0:01:16]} a6 {[%emt 0:00:48]} 7. Re1 {[%emt 0:01:00]} Ba7 {[%emt 0:02:26]} 8. a4 {[%emt 0:04:49]} h6 {[%emt 0:01:05]} 9. Nbd2 {[%emt 0:00:54]} O-O {[%emt 0:10:39]} 10. Nf1 {[%emt 0:01:16]} Re8 {[%emt 0:01:41]} 11. Ng3 {[%emt 0:02:11]} Be6 {[%emt 0:04:34]} 12. Bxe6 {[%emt 0:03:21]} Rxe6 {[%emt 0:00:16]} 13. d4 {[%emt 0:15:13]} Re8 {[%emt 0:05:01]} 14. h3 {[%emt 0:07:32]} Qd7 {[%emt 0:08:17]} 15. dxe5 {[%emt 0:07:16]} Nxe5 {[%emt 0:04:57]} 16. Be3 {[%emt 0:04:29]} Bxe3 {[%emt 0:02:26]} 17. Rxe3 {[%emt 0:00:37]} Rad8 {[%emt 0:12:02]} 18. Re1 {[%emt 0:10:30]} g6 {[%emt 0:02:36]} 19. Qd4 {[%emt 0:07:08]} Nxf3+ {[%emt 0:11:07]} 20. gxf3 {[%emt 0:00:05]} Nh7 {[%emt 0:00:47]} 21. Kg2 {[%emt 0:01:08]} Ng5 {[%emt 0:02:22]} 22. Rh1 {[%emt 0:00:38]} Qe7 {[%emt 0:06:39]} 23. h4 {[%emt 0:04:31]} Ne6 {[%emt 0:00:06]} 24. Qe3 {[%emt 0:00:02]} h5 {[%emt 0:01:24]} 25. Rag1 {[%emt 0:03:11]} Qf6 {[%emt 0:02:28]} 26. Qh6 {[%emt 0:00:33]} Qf4 {[%emt 0:01:18]} 27. Nf5 {[%emt 0:06:53]} Qxh6 {[%emt 0:01:12]} 28. Nxh6+ {[%emt 0:00:03]} Kg7 {[%emt 0:00:07]} 0-1